fUSD/lending_fUSD_20250602
["ID","MTS","AMOUNT","RATE_DAILY","PERIOD"]
[363777232,1748868643404,-420.0,0.00019178,2]
[363777233,1748868643413,-420.0,0.00019178,2]
[363777236,1748868643422,-436.59855197,0.00019178,2]
[363777238,1748868643432,-420.0,0.00019178,2]
[363777239,1748868643442,-420.0,0.00019178,2]
[363777241,1748868643451,-420.0,0.00019178,2]
[363777243,1748868643461,-420.0,0.00019178,2]
[363777245,1748868643470,-420.0,0.00019178,2]
[363777247,1748868643480,-424.67358799,0.00019178,2]
[363777249,1748868643489,-420.0,0.00019178,2]
[363777251,1748868643498,-420.0,0.00019178,2]
[363777253,1748868643507,-417.12074529,0.00019178,2]
[363777255,1748868643517,-420.0,0.00019178,2]
[363777257,1748868643528,-420.0,0.00019178,2]
[363777259,1748868643538,-420.0,0.00019178,2]
[363777261,1748868643548,-420.0,0.00019178,2]
[363777263,1748868643557,-420.0,0.00019178,2]
[363777265,1748868643567,-421.33989667,0.00019178,2]
[363777267,1748868643577,-420.0,0.00019178,2]
[363777270,1748868643586,-351.46080608,0.00019178,2]
[363777271,1748868643595,-425.61859977,0.00019178,2]
[363777274,1748868643605,-420.0,0.00019178,2]
[363777275,1748868643614,-435.23113764,0.00019178,2]
[363777277,1748868643625,-420.0,0.00019178,2]
[363777279,1748868643634,-420.0,0.00019178,2]
[363777281,1748868643643,-157.27915047,0.00019178,2]
[363777284,1748868643653,-420.0,0.00019178,2]
[363777286,1748868643662,-420.0,0.00019178,2]
[363777288,1748868643671,-420.0,0.00019178,2]
[363777289,1748868643681,-427.30045009,0.00019178,2]
[363777292,1748868643691,-420.0,0.00019178,2]
[363777293,1748868643699,-420.19,0.00019178,2]
[363777296,1748868643709,-420.0,0.00019178,2]
[363777298,1748868643718,-420.0,0.00019178,2]
[363777299,1748868643727,-443.45430289,0.00019178,2]
[363777302,1748868643736,-420.0,0.00019178,2]
[363777304,1748868643745,-420.0,0.00019178,2]
[363777306,1748868643754,-420.0,0.00019178,2]
[363777308,1748868643763,-420.0,0.00019178,2]
[363777310,1748868643773,-423.62003869,0.00019178,2]
[363777312,1748868643782,-420.0,0.00019178,2]
[363777313,1748868643791,-420.0,0.00019178,2]
[363777315,1748868643800,-421.86908494,0.00019178,2]
[363777317,1748868643809,-420.0,0.00019178,2]
[363777319,1748868643821,-427.4025291,0.00019178,2]
[363777321,1748868643830,-444.86,0.00019178,2]
[363777323,1748868643840,-420.0,0.00019178,2]
[363777326,1748868643850,-420.0,0.00019178,2]
[363777328,1748868643860,-300.07,0.00019178,2]
[363777330,1748868643871,-420.0,0.00019178,2]
[363777332,1748868643880,-420.0,0.00019178,2]
[363777334,1748868643889,-420.0,0.00019178,2]
[363777336,1748868643898,-233.18557803,0.00019178,2]
[363777338,1748868643909,-432.99943548,0.00019178,2]
[363777340,1748868643918,-420.0,0.00019178,2]
[363777342,1748868643927,-420.0,0.00019178,2]
[363777344,1748868643937,-420.0,0.00019178,2]
[363777346,1748868643946,-433.96459146,0.00019178,2]
[363777348,1748868643955,-420.0,0.00019178,2]
[363777350,1748868643964,-420.0,0.00019178,2]
[363777351,1748868643974,-420.0,0.00019178,2]
[363777353,1748868643984,-1174.57,0.00019178,2]
[363777356,1748868643994,-420.0,0.00019178,2]
[363777358,1748868644004,-420.0,0.00019178,2]
[363777359,1748868644013,-430.57827415,0.00019178,2]
[363777361,1748868644022,-420.0,0.00019178,2]
[363777363,1748868644032,-420.0,0.00019178,2]
[363777365,1748868644041,-420.0,0.00019178,2]
[363777367,1748868644050,-420.0,0.00019178,2]
[363777369,1748868644060,-353.39707697,0.00019178,2]
[363777371,1748868644069,-420.0,0.00019178,2]
[363777373,1748868644079,-1170.95,0.00019178,2]
[363777375,1748868644088,-758.5,0.00019178,2]
[363777377,1748868644098,-420.0,0.00019178,2]
[363777379,1748868644107,-420.0,0.00019178,2]
[363777381,1748868644117,-420.0,0.00019178,2]
[363777383,1748868644127,-399.62918961,0.00019178,2]
[363777385,1748868644137,-420.0,0.00019178,2]
[363777387,1748868644146,-420.0,0.00019178,2]
[363777389,1748868644155,-420.0,0.00019178,2]
[363777391,1748868644166,-4562.65,0.00019178,2]
[363777393,1748868644175,-420.0,0.00019178,2]
[363777395,1748868644185,-265.73231884,0.00019178,2]
[363777397,1748868644194,-250.2074042,0.00019178,2]
[363777399,1748868644204,-420.0,0.00019178,2]
[363777401,1748868644214,-420.0,0.00019178,2]
[363777403,1748868644223,-1744.68,0.00019178,2]
[363777405,1748868644232,-424.98717505,0.00019178,2]
[363777407,1748868644242,-296.82432281,0.00019178,2]
[363777409,1748868644251,-420.0,0.00019178,2]
[363777411,1748868644261,-420.0,0.00019178,2]
[363777413,1748868644270,-1175.3,0.00019178,2]
[363777415,1748868644280,-494.80788727,0.00019178,2]
[363777417,1748868644289,-9032.26,0.00019178,2]
[363777419,1748868644299,-420.0,0.00019178,2]
[363777421,1748868644308,-420.0,0.00019178,2]
[363777423,1748868644317,-422.51423292,0.00019178,2]
[363777425,1748868644327,-420.0,0.00019178,2]
[363777427,1748868644337,-1114.81,0.00019178,2]
[363777429,1748868644346,-420.0,0.00019178,2]
[363777431,1748868644356,-4177.71,0.00019178,2]
[363777433,1748868644370,-420.0,0.00019178,2]
[363777435,1748868644380,-551.63,0.00019178,2]
[363777437,1748868644390,-420.0,0.00019178,2]
[363777439,1748868644401,-996.0,0.00019178,2]
[363777441,1748868644411,-425.52973979,0.00019178,2]
[363777443,1748868644422,-420.0,0.00019178,2]
[363777445,1748868644432,-504.81,0.00019178,2]
[363777447,1748868644441,-420.0,0.00019178,2]
[363777449,1748868644450,-716.31,0.00019178,2]
[363777452,1748868644460,-420.0,0.00019178,2]
[363777453,1748868644469,-420.0,0.00019178,2]
[363777455,1748868644478,-420.0,0.00019178,2]
[363777457,1748868644488,-420.0,0.00019178,2]
[363777459,1748868644498,-505.16491397,0.00019178,2]
[363777462,1748868644507,-420.0,0.00019178,2]
[363777464,1748868644517,-249.78630435,0.00019178,2]
[363777465,1748868644526,-420.0,0.00019178,2]
[363777467,1748868644536,-420.0,0.00019178,2]
[363777469,1748868644546,-420.0,0.00019178,2]
[363777471,1748868644555,-420.0,0.00019178,2]
[363777474,1748868644565,-755.86,0.00019178,2]
[363777476,1748868644575,-929.45,0.00019178,2]
[363777478,1748868644585,-420.0,0.00019178,2]
[363777479,1748868644594,-425.29481746,0.00019178,2]
[363777482,1748868644604,-420.0,0.00019178,2]
[363777484,1748868644613,-420.0,0.00019178,2]
[363777485,1748868644624,-420.0,0.00019178,2]
[363777487,1748868644633,-420.0,0.00019178,2]
[363777490,1748868644643,-420.0,0.00019178,2]
[363777492,1748868644653,-420.0,0.00019178,2]
[363777494,1748868644663,-420.0,0.00019178,2]
[363777496,1748868644671,-420.0,0.00019178,2]
[363777497,1748868644681,-1041.38,0.00019178,2]
[363777499,1748868644690,-1475.64,0.00019178,2]
[363777501,1748868644700,-420.0,0.00019178,2]
[363777504,1748868644709,-420.0,0.00019178,2]
[363777505,1748868644719,-420.0,0.00019178,2]
[363777507,1748868644728,-420.0,0.00019178,2]
[363777509,1748868644738,-420.0,0.00019178,2]
[363777510,1748868644747,-420.0,0.00019178,2]
[363777511,1748868644756,-423.00896176,0.00019178,2]
[363777512,1748868644766,-420.0,0.00019178,2]
[363777513,1748868644775,-420.0,0.00019178,2]
[363777514,1748868644785,-614.15,0.00019178,2]
[363777515,1748868644794,-420.0,0.00019178,2]
[363777516,1748868644804,-420.0,0.00019178,2]
[363777517,1748868644814,-420.0,0.00019178,2]
[363777518,1748868644827,-420.0,0.00019178,2]
[363777520,1748868644837,-420.0,0.00019178,2]
[363777522,1748868644847,-420.0,0.00019178,2]
[363777524,1748868644857,-500.0,0.00019178,2]
[363777526,1748868644866,-666.38,0.00019178,2]
[363777528,1748868644877,-420.0,0.00019178,2]
[363777530,1748868644887,-420.0,0.00019178,2]
[363777532,1748868644898,-420.0,0.00019178,2]
[363777534,1748868644907,-420.0,0.00019178,2]
[363777536,1748868644917,-455.95443947,0.00019178,2]
[363777538,1748868644926,-420.0,0.00019178,2]
[363777539,1748868644935,-420.0,0.00019178,2]
[363777541,1748868644945,-420.0,0.00019178,2]
[363777543,1748868644955,-420.0,0.00019178,2]
[363777545,1748868644964,-420.0,0.00019178,2]
[363777547,1748868644973,-420.0,0.00019178,2]
[363777549,1748868644983,-768.88,0.00019178,2]
[363777551,1748868644992,-629.3,0.00019178,2]
[363777553,1748868645002,-420.0,0.00019178,2]
[363777555,1748868645012,-1774.49,0.00019178,2]
[363777557,1748868645022,-420.0,0.00019178,2]
[363777559,1748868645032,-420.0,0.00019178,2]
[363777561,1748868645043,-420.0,0.00019178,2]
[363777563,1748868645053,-422.09336319,0.00019178,2]
[363777565,1748868645063,-420.0,0.00019178,2]
[363777567,1748868645072,-500.0,0.00019178,2]
[363777569,1748868645082,-420.0,0.00019178,2]
[363777571,1748868645091,-420.0,0.00019178,2]
[363777573,1748868645101,-792.24,0.00019178,2]
[363777575,1748868645111,-420.0,0.00019178,2]
[363777577,1748868645121,-420.0,0.00019178,2]
[363777580,1748868645135,-420.0,0.00019178,2]
[363777582,1748868645146,-420.0,0.00019178,2]
[363777584,1748868645157,-520.88,0.00019178,2]
[363777586,1748868645166,-551.97,0.00019178,2]
[363777587,1748868645177,-420.0,0.00019178,2]
[363777590,1748868645187,-422.10891433,0.00019178,2]
[363777592,1748868645196,-420.0,0.00019178,2]
[363777594,1748868645206,-416.21115672,0.00019178,2]
[363777596,1748868645215,-438.8245913,0.00019178,2]
[363777598,1748868645225,-420.0,0.00019178,2]
[363777600,1748868645235,-420.0,0.00019178,2]
[363777602,1748868645245,-420.0,0.00019178,2]
[363777604,1748868645255,-420.0,0.00019178,2]
[363777606,1748868645265,-420.0,0.00019178,2]
[363777608,1748868645275,-420.0,0.00019178,2]
[363777610,1748868645284,-426.53991067,0.00019178,2]
[363777612,1748868645293,-420.0,0.00019178,2]
[363777614,1748868645303,-420.0,0.00019178,2]
[363777616,1748868645313,-420.0,0.00019178,2]
[363777618,1748868645322,-420.0,0.00019178,2]
[363777620,1748868645332,-420.0,0.00019178,2]
[363777622,1748868645342,-420.0,0.00019178,2]
[363777624,1748868645352,-630.76,0.00019178,2]
[363777626,1748868645362,-3392.49,0.00019178,2]
[363777628,1748868645373,-420.0,0.00019178,2]
[363777630,1748868645383,-482.48,0.00019178,2]
[363777632,1748868645393,-500.0,0.00019178,2]
[363777634,1748868645403,-420.0,0.00019178,2]
[363777636,1748868645411,-282.49578879,0.00019178,2]
[363777638,1748868645419,-420.0,0.00019178,2]
[363777640,1748868645427,-420.0,0.00019178,2]
[363777642,1748868645436,-420.0,0.00019178,2]
[363777644,1748868645446,-429.5,0.00019178,2]
[363777646,1748868645455,-420.0,0.00019178,2]
[363777648,1748868645465,-420.0,0.00019178,2]
[363777650,1748868645475,-420.0,0.00019178,2]
[363777652,1748868645484,-420.0,0.00019178,2]
[363777654,1748868645493,-580.65,0.00019178,2]
[363777656,1748868645502,-420.0,0.00019178,2]
[363777658,1748868645512,-420.0,0.00019178,2]
[363777660,1748868645521,-420.0,0.00019178,2]
[363777662,1748868645530,-420.0,0.00019178,2]
[363777664,1748868645539,-790.0,0.00019178,2]
[363777666,1748868645549,-420.0,0.00019178,2]
[363777668,1748868645558,-402.47059518,0.00019178,2]
[363777670,1748868645567,-468.55,0.00019178,2]
[363777672,1748868645576,-420.0,0.00019178,2]
[363777674,1748868645586,-936.76,0.00019178,2]
[363777675,1748868645595,-1765.14,0.00019178,2]
[363777676,1748868645605,-420.0,0.00019178,2]
[363777678,1748868645614,-420.0,0.00019178,2]
[363777680,1748868645625,-420.0,0.00019178,2]
[363777682,1748868645635,-1401.04,0.00019178,2]
[363777684,1748868645645,-498.84,0.00019178,2]
[363777686,1748868645655,-420.0,0.00019178,2]
[363777688,1748868645665,-424.58777391,0.00019178,2]
[363777690,1748868645675,-420.0,0.00019178,2]
[363777692,1748868645685,-420.0,0.00019178,2]
[363777694,1748868645694,-420.0,0.00019178,2]
[363777696,1748868645704,-423.66117894,0.00019178,2]
[363777698,1748868645713,-420.0,0.00019178,2]
[363777700,1748868645723,-420.0,0.00019178,2]
[363777702,1748868645732,-428.94522804,0.00019178,2]
[363777704,1748868645742,-420.0,0.00019178,2]
[363777706,1748868645752,-579.01,0.00019178,2]
[363777708,1748868645763,-420.0,0.00019178,2]
[363777710,1748868645772,-420.0,0.00019178,2]
[363777712,1748868645782,-2331.26,0.00019178,2]
[363777714,1748868645791,-573.08,0.00019178,2]
[363777716,1748868645801,-420.0,0.00019178,2]
[363777718,1748868645811,-844.27,0.00019178,2]
[363777720,1748868645825,-422.36042433,0.00019178,2]
[363777722,1748868645834,-1309.79,0.00019178,2]
[363777724,1748868645844,-420.0,0.00019178,2]
[363777726,1748868645854,-420.0,0.00019178,2]
[363777727,1748868645863,-2934.36,0.00019178,2]
[363777728,1748868645874,-420.0,0.00019178,2]
[363777729,1748868645884,-422.17633125,0.00019178,2]
[363777730,1748868645895,-1763.08,0.00019178,2]
[363777731,1748868645905,-420.0,0.00019178,2]
[363777733,1748868645914,-433.02237782,0.00019178,2]
[363777734,1748868645924,-447.66490073,0.00019178,2]
[363777735,1748868645934,-420.0,0.00019178,2]
[363777736,1748868645943,-420.0,0.00019178,2]
[363777737,1748868645952,-420.0,0.00019178,2]
[363777738,1748868645961,-420.0,0.00019178,2]
[363777739,1748868645970,-2355.75,0.00019178,2]
[363777740,1748868645979,-420.0,0.00019178,2]
[363777741,1748868645987,-420.0,0.00019178,2]
[363777742,1748868645996,-401.81931031,0.00019178,2]
[363777743,1748868646006,-422.25360146,0.00019178,2]
[363777745,1748868646015,-420.0,0.00019178,2]
[363777747,1748868646025,-420.0,0.00019178,2]
[363777749,1748868646033,-420.0,0.00019178,2]
[363777751,1748868646042,-420.0,0.00019178,2]
[363777753,1748868646051,-420.0,0.00019178,2]
[363777755,1748868646060,-1326.49,0.00019178,2]
[363777757,1748868646070,-420.0,0.00019178,2]
[363777759,1748868646079,-420.0,0.00019178,2]
[363777761,1748868646088,-420.0,0.00019178,2]
[363777763,1748868646098,-433.30206476,0.00019178,2]
[363777765,1748868646107,-420.0,0.00019178,2]
[363777767,1748868646116,-420.0,0.00019178,2]
[363777769,1748868646127,-1329.42,0.00019178,2]
[363777771,1748868646137,-420.0,0.00019178,2]
[363777773,1748868646147,-420.0,0.00019178,2]
[363777775,1748868646157,-420.0,0.00019178,2]
[363777777,1748868646166,-358.16414455,0.00019178,2]
[363777779,1748868646176,-420.0,0.00019178,2]
[363777798,1748868646357,-913.78,0.00019178,2]
[363777800,1748868646367,-423.99684182,0.00019178,2]
[363777802,1748868646378,-420.0,0.00019178,2]
[363777804,1748868646388,-527.60769188,0.00019178,2]
[363777806,1748868646397,-420.0,0.00019178,2]
[363777808,1748868646407,-461.99,0.00019178,2]
[363777810,1748868646418,-2903.51,0.00019178,2]
[363777812,1748868646427,-534.17,0.00019178,2]
[363777814,1748868646438,-675.23,0.00019178,2]
[363777816,1748868646447,-420.0,0.00019178,2]
[363777818,1748868646456,-420.0,0.00019178,2]
[363777820,1748868646466,-420.0,0.00019178,2]
[363777822,1748868646475,-420.0,0.00019178,2]
[363777824,1748868646484,-420.0,0.00019178,2]
[363777826,1748868646494,-1161.16,0.00019178,2]
[363777828,1748868646503,-420.0,0.00019178,2]
[363777830,1748868646512,-432.52553174,0.00019178,2]
[363777832,1748868646521,-693.48,0.00019178,2]
[363777834,1748868646530,-420.0,0.00019178,2]
[363777836,1748868646540,-428.82,0.00019178,2]
[363777838,1748868646549,-3113.02,0.00019178,2]
[363777839,1748868646557,-420.0,0.00019178,2]
[363777840,1748868646567,-420.0,0.00019178,2]
[363777841,1748868646576,-420.0,0.00019178,2]
[363777842,1748868646587,-420.0,0.00019178,2]
[363777843,1748868646597,-420.0,0.00019178,2]
[363777844,1748868646607,-581.6,0.00019178,2]
[363777845,1748868646616,-448.42,0.00019178,2]
[363777846,1748868646626,-972.65,0.00019178,2]
[363777847,1748868646636,-387.13144589,0.00019178,2]
[363777848,1748868646644,-593.57,0.00019178,2]
[363777849,1748868646653,-431.91977059,0.00019178,2]
[363777850,1748868646663,-420.0,0.00019178,2]
[363777851,1748868646672,-420.0,0.00019178,2]
[363777852,1748868646680,-420.0,0.00019178,2]
[363777853,1748868646690,-420.0,0.00019178,2]
[363777854,1748868646699,-614.98,0.00019178,2]
[363777855,1748868646709,-427.68290521,0.00019178,2]
[363777856,1748868646718,-420.0,0.00019178,2]
[363777857,1748868646727,-420.0,0.00019178,2]
[363777858,1748868646736,-420.0,0.00019178,2]
[363777859,1748868646745,-420.0,0.00019178,2]
[363777860,1748868646753,-420.0,0.00019178,2]
[363777861,1748868646762,-430.6127892,0.00019178,2]
[363777862,1748868646771,-659.87,0.00019178,2]
[363777863,1748868646780,-420.0,0.00019178,2]
[363777864,1748868646789,-420.0,0.00019178,2]
[363777865,1748868646798,-1440.83,0.00019178,2]
[363777866,1748868646807,-1078.33,0.00019178,2]
[363777867,1748868646818,-420.0,0.00019178,2]
[363777868,1748868646829,-167.761,0.00019178,2]
[363777870,1748868646838,-2255.10096463,0.00019261,2]
[363777871,1748868646847,-500.0,0.00019314,2]
[363777872,1748868646858,-500.0,0.00019314,2]
[363777873,1748868646867,-500.0,0.00019314,2]
[363777874,1748868646876,-500.0,0.00019314,2]
[363777875,1748868646884,-453.92487577,0.00019315,2]
[363777876,1748868646892,-427.46911828,0.00019315,2]
[363777877,1748868646901,-217.96,0.00019315,2]
[363777878,1748868646909,-420.0,0.00019315,2]
[363777879,1748868646918,-420.0,0.00019315,2]
[363777880,1748868646925,-559.77,0.00019315,2]
[363777881,1748868646932,-355.01601461,0.00019315,2]
[363777882,1748868646940,-429.90477255,0.00019315,2]
[363777883,1748868646949,-420.0,0.00019315,2]
[363777884,1748868646959,-420.0,0.00019315,2]
[363777885,1748868646968,-420.0,0.00019315,2]
[363777886,1748868646978,-508.52,0.00019315,2]
[363777887,1748868646988,-428.86015664,0.00019315,2]
[363777888,1748868646998,-420.0,0.00019315,2]
[363777889,1748868647007,-226.74980386,0.00019315,2]
[363777891,1748868647016,-420.0,0.00019315,2]
[363777893,1748868647026,-420.0,0.00019315,2]
[363777895,1748868647035,-420.0,0.00019315,2]
[363777897,1748868647045,-420.0,0.00019315,2]
[363777899,1748868647055,-420.0,0.00019315,2]
[363777901,1748868647064,-1610.521803,0.00019315,2]
[363777903,1748868647074,-420.0,0.00019315,2]
[363777905,1748868647083,-296.27208029,0.00019315,2]
[363777907,1748868647092,-500.0,0.00019315,2]
[363777909,1748868647101,-429.07174353,0.00019315,2]
[363777911,1748868647110,-1784.984478,0.00019315,2]
[363777913,1748868647119,-202.81788402,0.00019315,2]
[363777915,1748868647130,-150.0,0.00019315,2]
[363777917,1748868647139,-150.0,0.00019315,2]
[363777919,1748868647148,-158.7325083,0.00019315,2]
[363777921,1748868647158,-500.0,0.00019315,2]
[363777922,1748868647167,-420.0,0.00019315,2]
[363777924,1748868647176,-425.59221393,0.00019315,2]
[363777926,1748868647186,-420.0,0.00019315,2]
[363777928,1748868647195,-420.0,0.00019315,2]
[363777930,1748868647205,-435.64327054,0.00019315,2]
[363777932,1748868647215,-433.47552294,0.00019315,2]
[363777933,1748868647225,-420.0,0.00019315,2]
[363777935,1748868647234,-420.0,0.00019315,2]
[363777936,1748868647243,-420.0,0.00019315,2]
[363777937,1748868647252,-420.0,0.00019315,2]
[363777938,1748868647262,-420.0,0.00019315,2]
[363777939,1748868647271,-420.0,0.00019315,2]
[363777940,1748868647279,-420.0,0.00019315,2]
[363777941,1748868647289,-420.0,0.00019315,2]
[363777942,1748868647298,-433.79801668,0.00019315,2]
[363777943,1748868647307,-420.0,0.00019315,2]
[363777944,1748868647316,-420.0,0.00019315,2]
[363777945,1748868647325,-507.96,0.00019315,2]
[363777947,1748868647335,-456.0799874,0.00019315,2]
[363777949,1748868647344,-420.0,0.00019315,2]
[363777951,1748868647354,-420.0,0.00019315,2]
[363777952,1748868647363,-420.0,0.00019315,2]
[363777955,1748868647373,-420.0,0.00019315,2]
[363777956,1748868647383,-420.0,0.00019315,2]
[363777958,1748868647393,-420.0,0.00019315,2]
[363777960,1748868647403,-420.0,0.00019315,2]
[363777962,1748868647412,-420.0,0.00019315,2]
[363777964,1748868647422,-420.0,0.00019315,2]
[363777966,1748868647431,-420.0,0.00019315,2]
[363777968,1748868647441,-420.0,0.00019315,2]
[363777970,1748868647451,-420.0,0.00019315,2]
[363777972,1748868647460,-420.0,0.00019315,2]
[363777974,1748868647470,-420.0,0.00019315,2]
[363777976,1748868647479,-420.0,0.00019315,2]
[363777978,1748868647488,-420.0,0.00019315,2]
[363777980,1748868647498,-420.0,0.00019315,2]
[363777982,1748868647507,-420.0,0.00019315,2]
[363777984,1748868647516,-420.0,0.00019315,2]
[363777986,1748868647526,-420.0,0.00019315,2]
[363777988,1748868647535,-420.0,0.00019315,2]
[363777990,1748868647545,-420.0,0.00019315,2]
[363777992,1748868647555,-420.0,0.00019315,2]
[363777994,1748868647564,-420.0,0.00019315,2]
[363777996,1748868647573,-420.0,0.00019315,2]
[363777998,1748868647582,-421.09662053,0.00019315,2]
[363778000,1748868647592,-287.42,0.00019315,2]
[363778002,1748868647601,-420.0,0.00019315,2]
[363778004,1748868647611,-459.3985586,0.00019315,2]
[363778006,1748868647620,-420.0,0.00019315,2]
[363778007,1748868647631,-420.0,0.00019315,2]
[363778009,1748868647640,-420.0,0.00019315,2]
[363778011,1748868647649,-420.0,0.00019315,2]
[363778013,1748868647658,-247.76925168,0.00019315,2]
[363778014,1748868647667,-444.57349758,0.00019315,2]
[363778015,1748868647684,-420.0,0.00019315,2]
[363778016,1748868647699,-420.0,0.00019315,2]
[363778017,1748868647712,-420.0,0.00019315,2]
[363778018,1748868647725,-420.0,0.00019315,2]
[363778019,1748868647739,-420.0,0.00019315,2]
[363778020,1748868647753,-488.38,0.00019315,2]
[363778021,1748868647767,-420.0,0.00019315,2]
[363778022,1748868647781,-420.0,0.00019315,2]
[363778023,1748868647795,-420.0,0.00019315,2]
[363778024,1748868647805,-420.0,0.00019315,2]
[363778025,1748868647821,-420.0,0.00019315,2]
[363778026,1748868647835,-420.0,0.00019315,2]
[363778027,1748868647848,-265.71908939,0.00019315,2]
[363778028,1748868647862,-420.0,0.00019315,2]
[363778029,1748868647877,-420.0,0.00019315,2]
[363778030,1748868647890,-420.0,0.00019315,2]
[363778031,1748868647905,-420.0,0.00019315,2]
[363778032,1748868647919,-420.0,0.00019315,2]
[363778033,1748868647932,-420.0,0.00019315,2]
[363778034,1748868647946,-420.0,0.00019315,2]
[363778035,1748868647959,-420.0,0.00019315,2]
[363778036,1748868647974,-420.0,0.00019315,2]
[363778037,1748868647987,-420.0,0.00019315,2]
[363778038,1748868647999,-420.0,0.00019315,2]
[363778039,1748868648010,-500.0,0.00019315,2]
[363778040,1748868648022,-420.0,0.00019315,2]
[363778041,1748868648035,-883.87,0.00019315,2]
[363778042,1748868648050,-508.86,0.00019315,2]
[363778043,1748868648060,-420.0,0.00019315,2]
[363778044,1748868648071,-438.5064204,0.00019315,2]
[363778045,1748868648084,-420.0,0.00019315,2]
[363778046,1748868648099,-420.0,0.00019315,2]
[363778047,1748868648110,-420.0,0.00019315,2]
[363778048,1748868648122,-420.0,0.00019315,2]
[363778049,1748868648136,-425.87504137,0.00019315,2]
[363778050,1748868648150,-426.71436726,0.00019315,2]
[363778051,1748868648163,-420.0,0.00019315,2]
[363778052,1748868648177,-420.0,0.00019315,2]
[363778053,1748868648191,-420.0,0.00019315,2]
[363778054,1748868648204,-420.0,0.00019315,2]
[363778055,1748868648217,-420.0,0.00019315,2]
[363778056,1748868648230,-420.0,0.00019315,2]
[363778057,1748868648244,-420.0,0.00019315,2]
[363778058,1748868648256,-420.0,0.00019315,2]
[363778059,1748868648268,-420.0,0.00019315,2]
[363778060,1748868648281,-358.58,0.00019315,2]
[363778061,1748868648293,-420.0,0.00019315,2]
[363778062,1748868648306,-422.11212727,0.00019315,2]
[363778063,1748868648318,-420.0,0.00019315,2]
[363778064,1748868648331,-447.61311371,0.00019315,2]
[363778065,1748868648344,-420.0,0.00019315,2]
[363778066,1748868648357,-219.16,0.00019315,2]
[363778067,1748868648374,-420.0,0.00019315,2]
[363778068,1748868648386,-423.78,0.00019315,2]
[363778069,1748868648400,-420.0,0.00019315,2]
[363778070,1748868648413,-420.0,0.00019315,2]
[363778071,1748868648425,-420.0,0.00019315,2]
[363778072,1748868648438,-420.0,0.00019315,2]
[363778073,1748868648450,-420.0,0.00019315,2]
[363778074,1748868648462,-420.0,0.00019315,2]
[363778075,1748868648475,-420.0,0.00019315,2]
[363778076,1748868648494,-420.0,0.00019315,2]
[363778077,1748868648509,-420.0,0.00019315,2]
[363778078,1748868648529,-420.0,0.00019315,2]
[363778079,1748868648545,-340.0,0.00019315,2]
[363778080,1748868648563,-420.0,0.00019315,2]
[363778081,1748868648580,-420.0,0.00019315,2]
[363778082,1748868648599,-500.0,0.00019315,2]
[363778083,1748868648616,-420.0,0.00019315,2]
[363778084,1748868648633,-150.0,0.00019315,2]
[363778085,1748868648653,-150.0,0.00019315,2]